fUST/lending_fUST_20240508
["ID","MTS","AMOUNT","RATE_DAILY","PERIOD"]
[326622448,1715157046083,-500.0,0.00019178,2]
[326622450,1715157046092,-266.23905962,0.00019178,2]
[326622452,1715157046101,-500.0,0.00019178,2]
[326622454,1715157046111,-500.0,0.00019178,2]
[326622456,1715157046120,-500.0,0.00019178,2]
[326622458,1715157046130,-500.0,0.00019178,2]
[326622460,1715157046139,-500.0,0.00019178,2]
[326622462,1715157046148,-500.0,0.00019178,2]
[326622464,1715157046158,-500.0,0.00019178,2]
[326622466,1715157046168,-500.0,0.00019178,2]
[326622468,1715157046182,-500.0,0.00019178,2]
[326622470,1715157046194,-500.0,0.00019178,2]
[326622472,1715157046207,-500.0,0.00019178,2]
[326622474,1715157046216,-500.0,0.00019178,2]
[326622476,1715157046226,-500.0,0.00019178,2]
[326622478,1715157046236,-500.0,0.00019178,2]
[326622480,1715157046245,-500.0,0.00019178,2]
[326622482,1715157046257,-500.0,0.00019178,2]
[326622484,1715157046266,-500.0,0.00019178,2]
[326622486,1715157046275,-500.0,0.00019178,2]
[326622488,1715157046285,-500.0,0.00019178,2]
[326622490,1715157046294,-500.0,0.00019178,2]
[326622492,1715157046303,-500.0,0.00019178,2]
[326622494,1715157046313,-500.0,0.00019178,2]
[326622496,1715157046323,-500.0,0.00019178,2]
[326622498,1715157046333,-500.0,0.00019178,2]
[326622500,1715157046342,-528.96639231,0.00019178,2]
[326622502,1715157046352,-528.96639231,0.00019178,2]
[326622504,1715157046361,-528.96639231,0.00019178,2]
[326622506,1715157046371,-528.96639231,0.00019178,2]
[326622508,1715157046380,-528.96639231,0.00019178,2]
[326622510,1715157046390,-528.96639231,0.00019178,2]
[326622512,1715157046399,-528.96639231,0.00019178,2]
[326622514,1715157046409,-500.0,0.00019178,2]
[326622516,1715157046419,-500.0,0.00019178,2]
[326622518,1715157046429,-525.72782256,0.00019178,2]
[326622520,1715157046438,-525.72782256,0.00019178,2]
[326622522,1715157046447,-525.72782256,0.00019178,2]
[326622524,1715157046457,-525.72782256,0.00019178,2]
[326622525,1715157046467,-525.72782256,0.00019178,2]
[326622528,1715157046476,-525.72782256,0.00019178,2]
[326622529,1715157046485,-525.72782256,0.00019178,2]
[326622531,1715157046494,-525.72782256,0.00019178,2]
[326622533,1715157046504,-523.22435674,0.00019178,2]
[326622535,1715157046513,-523.22435674,0.00019178,2]
[326622537,1715157046523,-523.22435674,0.00019178,2]
[326622540,1715157046533,-523.22435674,0.00019178,2]
[326622542,1715157046543,-523.22435674,0.00019178,2]
[326622544,1715157046552,-523.22435674,0.00019178,2]
[326622546,1715157046561,-523.22435674,0.00019178,2]
[326622547,1715157046571,-523.22435674,0.00019178,2]
[326622549,1715157046580,-523.22435674,0.00019178,2]
[326622552,1715157046589,-523.22435674,0.00019178,2]
[326622554,1715157046599,-500.0,0.00019178,2]
[326622556,1715157046608,-403.85842121,0.00019178,2]
[326622558,1715157046617,-500.0,0.00019178,2]
[326622559,1715157046627,-500.0,0.00019178,2]
[326622561,1715157046636,-500.0,0.00019178,2]
[326622563,1715157046646,-230.05396926,0.00019178,2]
[326622566,1715157046655,-500.0,0.00019178,2]
[326622568,1715157046665,-423.73114508,0.00019178,2]
[326622570,1715157046674,-500.0,0.00019178,2]
[326622572,1715157046683,-500.0,0.00019178,2]
[326622574,1715157046693,-500.0,0.00019178,2]
[326622576,1715157046702,-239.57526811,0.00019178,2]
[326622578,1715157046711,-523.22435674,0.00019178,2]
[326622580,1715157046721,-523.22435674,0.00019178,2]
[326622582,1715157046731,-523.22435674,0.00019178,2]
[326622584,1715157046740,-523.22435674,0.00019178,2]
[326622586,1715157046750,-574.3,0.00019178,2]
[326622588,1715157046759,-530.44124442,0.00019178,2]
[326622590,1715157046769,-530.44124442,0.00019178,2]
[326622592,1715157046778,-530.44124442,0.00019178,2]
[326622594,1715157046788,-530.44124442,0.00019178,2]
[326622596,1715157046797,-530.44124442,0.00019178,2]
[326622598,1715157046806,-530.44124442,0.00019178,2]
[326622600,1715157046816,-530.44124442,0.00019178,2]
[326622602,1715157046826,-523.52244558,0.00019178,2]
[326622604,1715157046838,-523.52244558,0.00019178,2]
[326622606,1715157046847,-523.52244558,0.00019178,2]
[326622608,1715157046857,-523.52244558,0.00019178,2]
[326622610,1715157046866,-523.52244558,0.00019178,2]
[326622612,1715157046876,-523.52244558,0.00019178,2]
[326622614,1715157046885,-511.88861346,0.00019178,2]
[326622616,1715157046895,-511.88861346,0.00019178,2]
[326622618,1715157046904,-511.88861346,0.00019178,2]
[326622620,1715157046915,-511.88861346,0.00019178,2]
[326622622,1715157046924,-500.0,0.00019178,2]
[326622624,1715157046933,-449.79652958,0.00019178,2]
[326622626,1715157046942,-500.0,0.00019178,2]
[326622628,1715157046952,-500.0,0.00019178,2]
[326622630,1715157046961,-500.0,0.00019178,2]
[326622632,1715157046971,-500.0,0.00019178,2]
[326622634,1715157046980,-500.0,0.00019178,2]
[326622636,1715157046991,-500.0,0.00019178,2]
[326622638,1715157047001,-500.0,0.00019178,2]
[326622640,1715157047010,-500.0,0.00019178,2]
[326622642,1715157047020,-500.0,0.00019178,2]
[326622644,1715157047031,-500.0,0.00019178,2]
[326622646,1715157047041,-500.40391473,0.00019178,2]
[326622648,1715157047051,-500.0,0.00019178,2]
[326622650,1715157047060,-501.99559684,0.00019178,2]
[326622652,1715157047070,-500.96885911,0.00019178,2]
[326622654,1715157047082,-501.91145443,0.00019178,2]
[326622656,1715157047091,-500.0,0.00019178,2]
[326622658,1715157047101,-500.0,0.00019178,2]
[326622660,1715157047111,-501.09371187,0.00019178,2]
[326622662,1715157047120,-500.0,0.00019178,2]
[326622664,1715157047129,-634.17,0.00019178,2]
[326622666,1715157047139,-500.48718983,0.00019178,2]
[326622668,1715157047148,-500.0,0.00019178,2]
[326622670,1715157047158,-500.0,0.00019178,2]
[326622672,1715157047168,-500.0,0.00019178,2]
[326622674,1715157047182,-500.0,0.00019178,2]
[326622676,1715157047191,-500.0,0.00019178,2]
[326622678,1715157047200,-503.79911356,0.00019178,2]
[326622680,1715157047210,-501.02606612,0.00019178,2]
[326622682,1715157047220,-532.62,0.00019178,2]
[326622684,1715157047229,-719.9,0.00019178,2]
[326622686,1715157047239,-500.0,0.00019178,2]
[326622688,1715157047248,-500.0,0.00019178,2]
[326622690,1715157047258,-874.69,0.00019178,2]
[326622692,1715157047269,-521.09,0.00019178,2]
[326622694,1715157047278,-501.53449251,0.00019178,2]
[326622696,1715157047287,-500.0,0.00019178,2]
[326622698,1715157047297,-505.67480668,0.00019178,2]
[326622700,1715157047306,-500.0,0.00019178,2]
[326622702,1715157047315,-500.0,0.00019178,2]
[326622704,1715157047324,-501.56303749,0.00019178,2]
[326622706,1715157047333,-500.78171581,0.00019178,2]
[326622708,1715157047367,-214.30327562,0.00019178,2]
[326622710,1715157047377,-501.38564833,0.00019178,2]
[326622712,1715157047387,-500.0,0.00019178,2]
[326622714,1715157047396,-500.0,0.00019178,2]
[326622716,1715157047406,-500.0,0.00019178,2]
[326622718,1715157047416,-500.0,0.00019178,2]
[326622720,1715157047425,-502.3890879,0.00019178,2]
[326622722,1715157047434,-500.0,0.00019178,2]
[326622724,1715157047443,-501.64667304,0.00019178,2]
[326622726,1715157047453,-500.0,0.00019178,2]
[326622728,1715157047463,-500.0,0.00019178,2]
[326622730,1715157047472,-189.081622,0.00019178,2]
[326622732,1715157047482,-324.22771,0.00019178,2]
[326622734,1715157047491,-234.6140841,0.0001919,2]
[326622736,1715157047501,-234.6140841,0.00019227,2]
[326622738,1715157047511,-25786.85060377,0.00019227,2]
[326622740,1715157047520,-500.66606757,0.00019229,2]
[326622742,1715157047529,-500.0,0.00019229,2]
[326622744,1715157047539,-500.0,0.00019229,2]
[326622746,1715157047549,-501.78028776,0.00019229,2]
[326622748,1715157047558,-504.79000336,0.00019229,2]
[326622750,1715157047568,-500.0,0.00019229,2]
[326622752,1715157047577,-500.96692913,0.00019229,2]
[326622754,1715157047586,-500.0,0.00019229,2]
[326622756,1715157047596,-500.0,0.00019229,2]
[326622757,1715157047605,-503.61149376,0.00019229,2]
[326622759,1715157047614,-601.59,0.00019229,2]
[326622761,1715157047623,-500.0,0.00019229,2]
[326622763,1715157047633,-410.12616647,0.00019229,2]
[326622765,1715157047642,-500.0,0.00019229,2]
[326622767,1715157047651,-500.0,0.00019229,2]
[326622769,1715157047661,-500.8704086,0.00019229,2]
[326622771,1715157047672,-500.0,0.00019229,2]
[326622773,1715157047681,-500.0,0.00019229,2]
[326622775,1715157047691,-602.28123255,0.00019229,2]
[326622777,1715157047700,-500.0,0.00019229,2]
[326622779,1715157047710,-511.44381049,0.00019229,2]
[326622781,1715157047719,-500.0,0.00019229,2]
[326622783,1715157047729,-500.0,0.00019229,2]
[326622785,1715157047738,-502.98312349,0.00019229,2]
[326622787,1715157047747,-500.0,0.00019229,2]
[326622789,1715157047756,-500.0,0.00019229,2]
[326622791,1715157047765,-500.0,0.00019229,2]
[326622793,1715157047776,-500.0,0.00019229,2]
[326622795,1715157047785,-505.23143132,0.00019229,2]
[326622797,1715157047794,-500.82828489,0.00019229,2]
[326622799,1715157047803,-502.26107667,0.00019229,2]
[326622801,1715157047812,-538.30602055,0.00019229,2]
[326622803,1715157047821,-501.92381722,0.00019229,2]
[326622805,1715157047833,-503.26237847,0.00019229,2]
[326622807,1715157047844,-500.31792495,0.00019229,2]
[326622809,1715157047854,-500.46935312,0.00019229,2]
[326622812,1715157047864,-510.64476451,0.00019229,2]
[326622813,1715157047874,-500.0,0.00019229,2]
[326622815,1715157047883,-500.79633948,0.00019229,2]
[326622818,1715157047893,-510.15991233,0.00019229,2]
[326622820,1715157047903,-505.66562757,0.00019229,2]
[326622822,1715157047912,-500.0,0.00019229,2]
[326622824,1715157047922,-500.0,0.00019229,2]
[326622826,1715157047931,-501.71632942,0.00019229,2]
[326622827,1715157047940,-599.35751402,0.00019229,2]
[326622829,1715157047949,-503.9067211,0.00019229,2]
[326622831,1715157047959,-503.91369209,0.00019229,2]
[326622833,1715157047968,-502.56431046,0.00019229,2]
[326622835,1715157047978,-500.0,0.00019229,2]
[326622837,1715157047987,-500.0,0.00019229,2]
[326622839,1715157047996,-650.63,0.00019229,2]
[326622841,1715157048006,-503.30793779,0.00019229,2]
[326622843,1715157048015,-500.0,0.00019229,2]
[326622845,1715157048025,-504.25604227,0.00019229,2]
[326622847,1715157048034,-173.0472494,0.00019229,2]
[326622849,1715157048043,-501.88749497,0.00019229,2]
[326622851,1715157048053,-500.0,0.00019229,2]
[326622853,1715157048062,-503.28798622,0.00019229,2]
[326622855,1715157048071,-500.69145371,0.00019229,2]
[326622857,1715157048082,-504.02409013,0.00019229,2]
[326622859,1715157048092,-5370.27,0.00019229,2]
[326622861,1715157048101,-503.9211721,0.00019229,2]
[326622863,1715157048110,-501.205403,0.00019229,2]
[326622865,1715157048120,-500.0,0.00019229,2]
[326622867,1715157048130,-501.3812627,0.00019229,2]
[326622869,1715157048139,-500.0,0.00019229,2]
[326622871,1715157048149,-500.83,0.00019229,2]
[326622873,1715157048158,-502.87949729,0.00019229,2]
[326622875,1715157048168,-518.33846765,0.00019229,2]
[326622877,1715157048182,-500.0,0.00019229,2]
[326622879,1715157048191,-500.8181429,0.00019229,2]
[326622881,1715157048201,-531.46184206,0.00019229,2]
[326622883,1715157048210,-500.9004593,0.00019229,2]
[326622885,1715157048221,-502.09464205,0.00019229,2]
[326622887,1715157048230,-511.55355824,0.00019229,2]
[326622889,1715157048239,-783.73,0.00019229,2]
[326622891,1715157048248,-500.0,0.00019229,2]
[326622893,1715157048260,-502.35530596,0.00019229,2]
[326622895,1715157048269,-500.0,0.00019229,2]
[326622898,1715157048281,-267.27166792,0.00019229,2]
[326622900,1715157048290,-500.0,0.00019229,2]
[326622902,1715157048299,-527.06811226,0.00019229,2]
[326622904,1715157048309,-3446.19,0.00019229,2]
[326622906,1715157048318,-500.0,0.00019229,2]
[326622908,1715157048332,-500.0,0.00019229,2]
[326622910,1715157048350,-500.0,0.00019229,2]
[326622912,1715157048359,-501.15975155,0.00019229,2]
[326622914,1715157048368,-500.29407487,0.00019229,2]
[326622916,1715157048377,-490.85773828,0.00019229,2]
[326622918,1715157048387,-500.0,0.00019229,2]
[326622920,1715157048398,-503.74193694,0.00019229,2]
[326622922,1715157048408,-500.0,0.00019229,2]
[326622924,1715157048430,-500.0,0.00019229,2]
[326622926,1715157048447,-500.0,0.00019229,2]
[326622939,1715157048559,-502.210124,0.00019229,2]
[326622941,1715157048568,-500.0,0.00019229,2]
[326622943,1715157048577,-500.0,0.00019229,2]
[326622945,1715157048587,-500.0,0.00019229,2]
[326622947,1715157048597,-500.0,0.00019229,2]
[326622949,1715157048607,-783.73,0.00019309,2]
[326622951,1715157048616,-7946.92894707,0.00019311,2]
[326622953,1715157048625,-500.0,0.00019327,2]
[326622955,1715157048635,-1003.95765345,0.00019327,2]
[326622957,1715157048644,-500.43177497,0.00019327,2]
[326622959,1715157048654,-502.34020674,0.00019327,2]
[326622961,1715157048664,-503.67741112,0.00019327,2]
[326622963,1715157048675,-500.60380611,0.00019327,2]
[326622965,1715157048683,-500.48993181,0.00019327,2]
[326622967,1715157048693,-501.24296876,0.00019327,2]
[326622969,1715157048703,-502.28755232,0.00019327,2]
[326622971,1715157048712,-500.48472084,0.00019327,2]
[326622973,1715157048721,-413.62456042,0.00019327,2]
[326622975,1715157048730,-500.29468809,0.00019327,2]
[326622977,1715157048739,-343.0985556,0.00019327,2]
[326622979,1715157048749,-543.59104213,0.00019327,2]
[326622981,1715157048758,-502.18571486,0.00019327,2]
[326622983,1715157048767,-501.2127203,0.00019327,2]
[326622985,1715157048776,-501.18401859,0.00019327,2]
[326622987,1715157048785,-501.68011515,0.00019327,2]
[326622989,1715157048795,-500.75759207,0.00019327,2]
[326622990,1715157048804,-500.0,0.00019327,2]
[326622992,1715157048814,-500.0,0.00019327,2]
[326622994,1715157048823,-500.0,0.00019327,2]
[326622996,1715157048832,-500.0,0.00019327,2]
[326622998,1715157048841,-393.04649662,0.00019327,2]
[326623000,1715157048850,-500.96171017,0.00019327,2]
[326623002,1715157048860,-500.29433078,0.00019327,2]
[326623004,1715157048869,-500.71996049,0.00019327,2]
[326623006,1715157048878,-510.63798429,0.00019327,2]
[326623009,1715157048887,-500.54833491,0.00019327,2]
[326623010,1715157048897,-502.3212959,0.00019327,2]
[326623013,1715157048906,-500.99998155,0.00019327,2]
[326623014,1715157048915,-500.86247214,0.00019327,2]
[326623016,1715157048925,-501.87704151,0.00019327,2]
[326623019,1715157048934,-500.96762809,0.00019327,2]
[326623021,1715157048944,-546.16271976,0.00019327,2]
[326623023,1715157048953,-500.0,0.00019327,2]
[326623025,1715157048963,-506.41704636,0.00019327,2]
[326623026,1715157048972,-504.26405506,0.00019327,2]
[326623029,1715157048982,-500.92600896,0.00019327,2]
[326623031,1715157048992,-500.0,0.00019327,2]
[326623033,1715157049002,-505.04526063,0.00019327,2]
[326623035,1715157049011,-500.0,0.00019327,2]
[326623037,1715157049020,-505.5773411,0.00019327,2]
[326623039,1715157049029,-500.0,0.00019327,2]
[326623041,1715157049038,-503.05508503,0.00019327,2]
[326623043,1715157049047,-155.09799329,0.00019327,2]
[326623045,1715157049056,-349.221964,0.00019327,2]
[326623046,1715157049082,-502.25807635,0.00019327,2]
[326623049,1715157049092,-500.66834277,0.00019327,2]
[326623051,1715157049101,-500.0,0.00019327,2]
[326623052,1715157049111,-500.0,0.00019327,2]
[326623054,1715157049120,-501.7017673,0.00019327,2]
[326623056,1715157049130,-500.0,0.00019327,2]
[326623058,1715157049139,-500.0,0.00019327,2]
[326623060,1715157049148,-500.88400096,0.00019327,2]
[326623063,1715157049159,-500.0,0.00019327,2]
[326623064,1715157049170,-500.20861755,0.00019327,2]
[326623067,1715157049185,-501.76445616,0.00019327,2]
[326623069,1715157049195,-507.93878421,0.00019327,2]
[326623071,1715157049204,-500.63922719,0.00019327,2]
[326623073,1715157049214,-500.0,0.00019327,2]
[326623075,1715157049224,-500.0,0.00019327,2]
[326623077,1715157049233,-501.21675196,0.00019327,2]
[326623079,1715157049242,-500.0,0.00019327,2]
[326623081,1715157049252,-500.0,0.00019327,2]
[326623083,1715157049262,-500.0,0.00019327,2]
[326623085,1715157049273,-500.0,0.00019327,2]
[326623087,1715157049282,-500.0,0.00019327,2]
[326623089,1715157049291,-506.11781923,0.00019327,2]
[326623091,1715157049300,-500.0,0.00019327,2]
[326623093,1715157049310,-500.23874989,0.00019327,2]
[326623095,1715157049319,-501.85683721,0.00019327,2]
[326623097,1715157049328,-511.4491161,0.00019327,2]
[326623099,1715157049337,-636.15066506,0.00019327,2]
[326623101,1715157049346,-502.88018838,0.00019327,2]
[326623103,1715157049356,-523.77,0.00019327,2]
[326623105,1715157049365,-504.0546096,0.00019327,2]
[326623107,1715157049374,-500.0,0.00019327,2]
[326623109,1715157049383,-500.0,0.00019327,2]
[326623111,1715157049392,-500.0,0.00019327,2]
[326623113,1715157049401,-500.0,0.00019327,2]
[326623115,1715157049411,-500.0,0.00019327,2]
[326623117,1715157049422,-500.12520208,0.00019327,2]
[326623119,1715157049431,-500.0,0.00019327,2]
[326623121,1715157049440,-504.75732337,0.00019327,2]
[326623123,1715157049449,-500.0,0.00019327,2]
[326623125,1715157049458,-500.0,0.00019327,2]
[326623127,1715157049467,-500.0,0.00019327,2]
[326623129,1715157049476,-500.0,0.00019327,2]
[326623130,1715157049485,-500.0,0.00019327,2]
[326623131,1715157049495,-203.60963801,0.00019327,2]
[326623132,1715157049503,-517.18204168,0.00019327,2]
[326623133,1715157049512,-500.0,0.00019327,2]
[326623134,1715157049521,-500.0,0.00019327,2]
[326623135,1715157049533,-587.3315525,0.00019327,2]
[326623136,1715157049542,-532.84,0.00019327,2]
[326623137,1715157049551,-500.0,0.00019327,2]
[326623138,1715157049560,-500.70267864,0.00019327,2]
[326623139,1715157049569,-500.0,0.00019327,2]
[326623140,1715157049578,-500.0,0.00019327,2]
[326623141,1715157049587,-500.0,0.00019327,2]
[326623142,1715157049595,-596.06217703,0.00019327,2]
[326623144,1715157049604,-500.94793669,0.00019327,2]
[326623145,1715157049613,-500.0,0.00019327,2]
[326623147,1715157049623,-500.0,0.00019327,2]
[326623149,1715157049631,-502.37133475,0.00019327,2]
[326623151,1715157049640,-500.0,0.00019327,2]
[326623153,1715157049650,-500.0,0.00019327,2]
[326623155,1715157049659,-505.82923811,0.00019327,2]
[326623157,1715157049669,-500.0,0.00019327,2]
[326623159,1715157049678,-500.0,0.00019327,2]
[326623161,1715157049687,-454.19205431,0.00019327,2]
[326623163,1715157049696,-504.62475234,0.00019327,2]
[326623165,1715157049706,-502.94414401,0.00019327,2]
[326623167,1715157049715,-540.95036013,0.00019327,2]
[326623169,1715157049725,-500.0,0.00019327,2]
[326623171,1715157049734,-500.0,0.00019327,2]
[326623173,1715157049743,-500.0,0.00019327,2]
[326623175,1715157049752,-501.43488221,0.00019327,2]
[326623177,1715157049762,-502.49228135,0.00019327,2]
[326623179,1715157049771,-500.0,0.00019327,2]
[326623181,1715157049780,-511.90406821,0.00019327,2]
[326623183,1715157049789,-509.52070625,0.00019327,2]
[326623185,1715157049799,-501.20907331,0.00019327,2]
[326623187,1715157049808,-500.0,0.00019327,2]
[326623189,1715157049817,-501.04133626,0.00019327,2]
[326623191,1715157049826,-501.14585918,0.00019327,2]
[326623193,1715157049835,-501.14000429,0.00019327,2]
[326623195,1715157049844,-500.0,0.00019327,2]
[326623197,1715157049853,-503.16150224,0.00019327,2]
[326623199,1715157049862,-501.7953055,0.00019327,2]
[326623201,1715157049871,-502.89261521,0.00019327,2]
[326623203,1715157049880,-504.04389611,0.00019327,2]
[326623205,1715157049889,-501.76478946,0.00019327,2]
[326623207,1715157049898,-255.49791751,0.00019327,2]
[326623209,1715157049907,-500.0,0.00019327,2]
[326623211,1715157049916,-500.0,0.00019327,2]
[326623213,1715157049926,-503.92119331,0.00019327,2]
[326623215,1715157049935,-500.0,0.00019327,2]
[326623217,1715157049944,-500.0,0.00019327,2]
[326623219,1715157049955,-500.57557726,0.00019327,2]
[326623221,1715157049966,-500.0,0.00019327,2]
[326623223,1715157049975,-501.44205416,0.00019327,2]
[326623225,1715157049984,-500.0,0.00019327,2]
[326623227,1715157049993,-508.6801211,0.00019327,2]
[326623229,1715157050004,-500.0,0.00019327,2]
[326623231,1715157050014,-500.0,0.00019327,2]
[326623232,1715157050023,-500.0,0.00019327,2]
[326623234,1715157050032,-500.0,0.00019327,2]
[326623236,1715157050042,-500.89979687,0.00019327,2]
[326623238,1715157050051,-500.0,0.00019327,2]
[326623240,1715157050060,-500.0,0.00019327,2]
[326623242,1715157050069,-500.93999963,0.00019327,2]
[326623244,1715157050082,-533.53221427,0.00019327,2]
[326623246,1715157050091,-501.00880404,0.00019327,2]
[326623248,1715157050100,-500.0,0.00019327,2]
[326623250,1715157050110,-500.46561167,0.00019327,2]
[326623252,1715157050119,-501.0399438,0.00019327,2]
[326623254,1715157050128,-500.0,0.00019327,2]
[326623256,1715157050138,-500.0,0.00019327,2]
[326623258,1715157050147,-500.0,0.00019327,2]
[326623260,1715157050156,-500.0,0.00019327,2]
[326623262,1715157050166,-501.20841747,0.00019327,2]
[326623264,1715157050179,-501.11572589,0.00019327,2]
[326623266,1715157050188,-506.09408082,0.00019327,2]
[326623268,1715157050197,-500.0,0.00019327,2]
[326623270,1715157050207,-613.0136449,0.00019327,2]
[326623272,1715157050217,-500.0,0.00019327,2]
[326623274,1715157050228,-500.82387148,0.00019327,2]
[326623276,1715157050240,-491.84878925,0.00019327,2]
[326623278,1715157050249,-500.0,0.00019327,2]
[326623280,1715157050260,-500.0,0.00019327,2]
[326623282,1715157050270,-500.0,0.00019327,2]
[326623284,1715157050279,-504.73605942,0.00019327,2]
[326623286,1715157050288,-500.48499089,0.00019327,2]
[326623288,1715157050298,-500.3918892,0.00019327,2]
[326623290,1715157050307,-500.72719303,0.00019327,2]
[326623292,1715157050317,-585.14219688,0.00019327,2]
[326623294,1715157050326,-500.0,0.00019327,2]
[326623296,1715157050335,-500.0,0.00019327,2]
[326623298,1715157050344,-500.0,0.00019327,2]
[326623300,1715157050354,-502.02828058,0.00019327,2]
[326623302,1715157050363,-783.73,0.00019327,2]
[326623305,1715157050372,-500.0,0.00019327,2]
[326623307,1715157050381,-501.37664509,0.00019327,2]
[326623309,1715157050390,-500.66311408,0.00019327,2]
[326623311,1715157050399,-502.67886306,0.00019327,2]
[326623313,1715157050410,-501.24356108,0.00019327,2]
[326623315,1715157050419,-229.3141522,0.00019327,2]
[326623317,1715157050431,-500.0,0.00019327,2]
[326623318,1715157050454,-500.9726765,0.00019327,2]
[326623320,1715157050463,-500.93783425,0.00019327,2]
[326623322,1715157050472,-501.48589854,0.00019327,2]
[326623324,1715157050482,-594.57391218,0.00019327,2]
[326623326,1715157050491,-500.56715252,0.00019327,2]
[326623328,1715157050500,-502.17780884,0.00019327,2]
[326623330,1715157050510,-500.0,0.00019327,2]
[326623331,1715157050519,-501.0390201,0.00019327,2]
[326623332,1715157050527,-500.0,0.00019327,2]
[326623333,1715157050536,-500.82204267,0.00019327,2]
[326623334,1715157050546,-502.09169864,0.00019327,2]
[326623335,1715157050555,-506.79656274,0.00019327,2]
[326623336,1715157050564,-500.0,0.00019327,2]
[326623337,1715157050573,-515.60148047,0.00019327,2]
[326623338,1715157050582,-500.85648218,0.00019327,2]
[326623339,1715157050591,-501.33230678,0.00019327,2]
[326623340,1715157050600,-502.76277666,0.00019327,2]
[326623341,1715157050609,-501.10935938,0.00019327,2]
[326623342,1715157050619,-163.94559106,0.00019327,2]
[326623344,1715157050629,-500.0,0.00019327,2]
[326623346,1715157050639,-501.64628139,0.00019327,2]
[326623348,1715157050648,-502.29282885,0.00019327,2]
[326623350,1715157050658,-503.69999267,0.00019327,2]
[326623352,1715157050669,-502.39441588,0.00019327,2]
[326623354,1715157050678,-500.40141603,0.00019327,2]
[326623355,1715157050687,-501.00454289,0.00019327,2]
[326623357,1715157050696,-500.69996031,0.00019327,2]
[326623359,1715157050705,-501.16622456,0.00019327,2]
[326623361,1715157050715,-500.0,0.00019327,2]
[326623363,1715157050724,-501.7425068,0.00019327,2]
[326623364,1715157050733,-505.90452222,0.00019327,2]
[326623365,1715157050742,-502.03875441,0.00019327,2]
[326623366,1715157050752,-464.53142045,0.00019327,2]
[326623367,1715157050761,-500.0,0.00019327,2]
[326623368,1715157050770,-1376.70461185,0.00019328,2]
[326623369,1715157050779,-1063.47170863,0.00019328,2]
[326623370,1715157050789,-3830.91278375,0.00019328,2]
[326623371,1715157050798,-475.53679444,0.00019328,2]
[326623372,1715157050807,-154.7215013,0.00019328,2]
[326623373,1715157050817,-234.17977917,0.00019328,2]
[326623374,1715157050826,-340.79875434,0.00019328,2]
[326623375,1715157050835,-181.75596962,0.00019328,2]
[326623376,1715157050844,-907.91075874,0.00019328,2]
[326623377,1715157050853,-154.94365812,0.00019328,2]
[326623378,1715157050862,-686.89234296,0.00019328,2]
[326623379,1715157050871,-156.1915789,0.00019328,2]
[326623380,1715157050881,-154.7215013,0.00019328,2]
[326623381,1715157050890,-154.67518212,0.00019329,2]
[326623382,1715157050899,-893.83962064,0.0001933,2]
[326623383,1715157050908,-718.06665172,0.0001933,2]
[326623384,1715157050918,-155.14802321,0.0001933,2]
[326623385,1715157050927,-1893.19317664,0.0001933,2]
[326623386,1715157050936,-901.60044345,0.0001933,2]
[326623387,1715157050945,-1642.31272733,0.0001933,2]
[326623388,1715157050954,-158.13417593,0.0001933,2]
[326623389,1715157050964,-1095.24277727,0.0001933,2]
[326623391,1715157050973,-206.61730233,0.0001933,2]
[326623393,1715157050982,-744.35757128,0.0001933,2]
[326623395,1715157050991,-236.07687408,0.0001933,2]
[326623397,1715157051000,-240.23693063,0.0001933,2]
[326623399,1715157051009,-309.16301887,0.0001933,2]
[326623401,1715157051018,-5392.89532144,0.0001933,2]
[326623403,1715157051028,-217.55759055,0.0001933,2]